bitfinex/quotes_BTCUSD_20260315
["timestamp","ask_amount","ask_price","bid_price","bid_amount"]
[1773553200834,0.07000368,71653.0,71633.0,0.02948515]
[1773553200835,0.00022001,71653.0,71633.0,0.02948515]
[1773553201044,0.11154763,71666.0,71644.0,0.02948515]
[1773553201045,0.0014,71657.0,71644.0,0.02948515]
[1773553201276,0.06976857,71666.0,71650.0,0.05842668]
[1773553201277,0.0014,71656.0,71650.0,0.05842668]
[1773553201482,0.0014,71655.0,71647.0,0.02948515]
[1773553201653,0.0014,71654.0,71647.0,0.02948515]
[1773553202265,0.06977443,71660.0,71648.0,0.06978561]
[1773553202438,0.0014,71659.0,71648.0,0.09927076]
[1773553203066,0.05870152,71663.0,71648.0,0.06978561]
[1773553203316,0.0014,71658.0,71650.0,0.05842668]
[1773553203448,0.0014,71658.0,71648.0,0.06978561]
[1773553210457,0.0711764,71658.0,71645.0,0.02948515]
[1773553213312,0.0711764,71658.0,71646.0,0.06978756]
[1773553213713,0.0711764,71658.0,71647.0,0.02948515]
[1773553216173,0.0014,71658.0,71648.0,0.06978561]
[1773553216514,0.0014,71658.0,71649.0,0.02948515]
[1773553216924,0.00022001,71659.0,71649.0,0.02948515]
[1773553216925,0.0014,71657.0,71649.0,0.02948515]
[1773553217307,0.00022001,71659.0,71649.0,0.02948515]
[1773553217485,0.00162001,71659.0,71649.0,0.02948515]
[1773553218328,0.00022001,71659.0,71650.0,0.06978367]
[1773553218484,0.0014,71658.0,71650.0,0.06978367]
[1773553218690,0.06976822,71666.0,71650.0,0.06978367]
[1773553218693,0.147,71695.0,71652.0,0.02948515]
[1773553219006,0.03349313,71692.0,71680.0,0.05842668]
[1773553219216,0.06974175,71694.0,71652.0,0.0003924]
[1773553219217,0.06974155,71694.0,71681.0,0.0014]
[1773553219426,0.06974009,71695.0,71682.0,0.0014]
[1773553219638,0.06974009,71695.0,71683.0,0.00136]
[1773553219836,0.07009712,71695.0,71683.0,0.00136]
[1773553220498,0.02940263,71694.0,71681.0,0.0697531]
[1773553220701,0.02940263,71694.0,71683.0,0.0014]
[1773553221766,0.02940263,71694.0,71679.0,0.0711552]
[1773553222378,0.06974181,71693.0,71679.0,0.0711552]
[1773553222530,0.03269276,71692.0,71680.0,0.0014]
[1773553222929,0.03269276,71692.0,71679.0,0.0697552]
[1773553223136,0.03269276,71692.0,71680.0,0.0014]
[1773553223948,0.0014,71693.0,71680.0,0.05842668]
[1773553224153,0.0014,71693.0,71680.0,0.05982668]
[1773553224360,0.03269276,71692.0,71681.0,0.07115349]
[1773553224722,0.03269276,71692.0,71681.0,0.06975349]
[1773553224926,0.03269276,71692.0,71681.0,0.07115349]
[1773553225805,0.03269276,71692.0,71681.0,0.06975349]
[1773553226873,0.0014,71693.0,71681.0,0.06975349]
[1773553227296,0.0014,71693.0,71681.0,0.07115349]
[1773553227632,0.00022001,71692.0,71681.0,0.07115349]
[1773553228846,0.06996327,71692.0,71681.0,0.07115349]
[1773553228964,0.06996327,71692.0,71682.0,0.0014]
[1773553230630,0.00022001,71692.0,71683.0,0.06975154]
[1773553232876,0.06996321,71692.0,71682.0,0.06975181]
[1773553234743,0.00022001,71692.0,71682.0,0.06975181]
[1773553236566,0.06996294,71692.0,71682.0,0.06975181]
[1773553236748,0.03269276,71691.0,71681.0,0.06975154]
[1773553237279,0.10243723,71691.0,71680.0,0.06975429]
[1773553238017,0.10243723,71691.0,71680.0,0.12818097]
[1773553238333,0.06974447,71691.0,71680.0,0.12818097]
[1773553238737,0.00022001,71692.0,71681.0,0.03356139]
[1773553239286,0.00022001,71692.0,71680.0,0.12818097]
[1773553239702,0.06996287,71692.0,71680.0,0.12818097]
[1773553241152,0.06996287,71692.0,71680.0,0.12958097]
[1773553241977,0.06996287,71692.0,71680.0,0.12818097]
[1773553244885,0.00022001,71692.0,71681.0,0.03356139]
[1773553245291,0.00022001,71692.0,71682.0,0.06975251]
[1773553245490,0.0699631,71692.0,71682.0,0.06975251]
[1773553247764,0.06974116,71694.0,71682.0,0.06975251]
[1773553248771,0.10243392,71694.0,71682.0,0.06975251]
[1773553250466,0.10243392,71694.0,71682.0,0.06995251]
[1773553250664,0.10265393,71694.0,71682.0,0.06995251]
[1773553250865,0.10265393,71694.0,71674.0,0.11123269]
[1773553250866,0.03410116,71691.0,71674.0,0.11123269]
[1773553251064,0.03410116,71691.0,71674.0,0.0002]
[1773553251978,0.03728365,71689.0,71675.0,0.06975933]
[1773553252159,0.03728365,71687.0,71675.0,0.06975933]
[1773553252347,0.03728365,71687.0,71674.0,0.0002]
[1773553253749,0.03728365,71687.0,71674.0,0.06995995]
[1773553253947,0.06974862,71686.0,71674.0,0.06995995]
[1773553254396,0.03728365,71685.0,71674.0,0.06995995]
[1773553256484,0.06975057,71684.0,71674.0,0.06995995]
[1773553256689,0.06975057,71684.0,71674.0,0.0002]
[1773553257120,0.06975057,71684.0,71674.0,0.06996002]
[1773553257550,0.06974862,71686.0,71674.0,0.06996002]
[1773553257757,0.10703227,71686.0,71674.0,0.06996002]
[1773553259952,0.06974862,71686.0,71674.0,0.06996002]
[1773553260793,0.06974429,71691.0,71676.0,0.05836653]
[1773553260926,0.0003,71692.0,71681.0,0.03481973]
[1773553260927,0.07004331,71692.0,71681.0,0.03481973]
[1773553261350,0.07014331,71692.0,71681.0,0.03481973]
[1773553261549,0.0004,71692.0,71681.0,0.03621973]
[1773553261750,0.0004,71692.0,71683.0,0.03481973]
[1773553261966,0.07014307,71692.0,71683.0,0.03481973]
[1773553262130,0.07024307,71692.0,71683.0,0.03481973]
[1773553263509,0.07034307,71692.0,71683.0,0.03481973]
[1773553263913,0.07034307,71692.0,71682.0,0.06975251]
[1773553264087,0.10762672,71692.0,71682.0,0.06975251]
[1773553264304,0.07034307,71692.0,71682.0,0.06975251]
[1773553264500,0.0014,71691.0,71682.0,0.06975251]
[1773553264842,0.0014,71691.0,71682.0,0.10457224]
[1773553265201,0.07174307,71692.0,71682.0,0.10457224]
[1773553266190,0.07034307,71692.0,71683.0,0.03481973]
[1773553266923,0.07034307,71692.0,71682.0,0.06975251]
[1773553267474,0.07034307,71692.0,71681.0,0.06975283]
[1773553267917,0.07174307,71692.0,71681.0,0.10457256]
[1773553268241,0.07174307,71692.0,71682.0,0.03481973]
[1773553269438,0.07174307,71692.0,71683.0,0.06975154]
[1773553272768,0.07174307,71692.0,71682.0,0.0699523]
[1773553273124,0.2110044,71692.0,71682.0,0.0699523]
[1773553273323,0.07174307,71692.0,71682.0,0.0699523]
[1773553274050,0.21100994,71692.0,71682.0,0.0699523]
[1773553274373,0.07174307,71692.0,71682.0,0.0699523]
[1773553274768,0.21101616,71692.0,71682.0,0.0699523]
[1773553274969,0.07174307,71692.0,71682.0,0.0699523]
[1773553275326,0.21101616,71692.0,71682.0,0.0699523]
[1773553275974,0.21101616,71692.0,71682.0,0.0698523]
[1773553276373,0.20961616,71692.0,71682.0,0.0698523]
[1773553276575,0.0014,71691.0,71682.0,0.0698523]
[1773553276962,0.20961616,71692.0,71682.0,0.0698523]
[1773553277169,0.0014,71691.0,71682.0,0.0698523]
[1773553277766,0.06974473,71690.0,71682.0,0.0698523]
[1773553278779,0.06974473,71690.0,71680.0,0.05674071]
[1773553279163,0.06974473,71690.0,71682.0,0.0697523]
[1773553280081,0.06974473,71690.0,71681.0,0.06975251]
[1773553280859,0.06990803,71690.0,71681.0,0.06975251]
[1773553282534,0.0001633,71690.0,71681.0,0.06975251]
[1773553284209,0.05309571,71694.0,71682.0,0.03750577]
[1773553284430,0.06973889,71697.0,71682.0,0.03750577]
[1773553284628,0.06984595,71697.0,71682.0,0.03750577]
[1773553285364,0.06984595,71697.0,71681.0,0.06975251]
[1773553285522,0.24366279,71697.0,71681.0,0.06975251]
[1773553286314,0.20922889,71697.0,71681.0,0.10725828]
[1773553286537,0.13938294,71696.0,71681.0,0.10725828]
[1773553286936,0.06984595,71697.0,71681.0,0.10725828]
[1773553287149,0.20923167,71697.0,71681.0,0.10725828]
[1773553287332,0.13938572,71696.0,71681.0,0.10725828]
[1773553287526,0.17381962,71696.0,71681.0,0.06975251]
[1773553287749,0.13938572,71695.0,71681.0,0.06975251]
[1773553287972,0.0344339,71696.0,71681.0,0.06975251]
[1773553288182,0.06974084,71694.0,71681.0,0.06975251]
[1773553289135,0.06974084,71694.0,71682.0,0.03750577]
[1773553290193,0.06974084,71694.0,71682.0,0.03740577]
[1773553290563,0.06974084,71694.0,71683.0,0.06975154]
[1773553293306,0.06973987,71695.0,71683.0,0.06975154]
[1773553294794,0.06973987,71695.0,71680.0,0.06995403]
[1773553294795,0.0344339,71694.0,71680.0,0.06995403]
[1773553294994,0.0344339,71693.0,71680.0,0.06995403]
[1773553296478,0.0344339,71691.0,71680.0,0.06995403]
[1773553296670,0.0014,71690.0,71680.0,0.06995403]
[1773553296999,0.0358339,71690.0,71680.0,0.06995403]
[1773553297558,0.0358339,71690.0,71679.0,0.0002]
[1773553297766,0.0358339,71690.0,71679.0,0.06995529]
[1773553298384,0.0697457,71689.0,71679.0,0.06995529]
[1773553298700,0.03825096,71688.0,71679.0,0.06995529]
[1773553299675,0.0014,71687.0,71679.0,0.06995529]
[1773553306048,0.00022001,71694.0,71679.0,0.06995529]
[1773553306049,0.07136105,71694.0,71679.0,0.06995529]
[1773553306273,0.06996105,71694.0,71679.0,0.06995529]
[1773553306407,0.00022001,71694.0,71684.0,0.05836653]
[1773553306607,0.00022001,71694.0,71681.0,0.02374708]
[1773553307231,0.00022001,71694.0,71682.0,0.06975251]
[1773553308034,0.00162001,71694.0,71682.0,0.06975251]
[1773553311010,0.03653436,71693.0,71681.0,0.07115251]
[1773553311974,0.03653436,71693.0,71681.0,0.06975251]
[1773553312178,0.10719308,71693.0,71681.0,0.06975251]
[1773553314272,0.10719308,71693.0,71681.0,0.06995251]
[1773553315137,0.0014,71692.0,71681.0,0.06995251]
[1773553319027,0.03885071,71692.0,71681.0,0.06995251]
[1773553322181,0.03885071,71692.0,71680.0,0.05432042]
[1773553322182,0.03745071,71691.0,71680.0,0.05432042]
[1773553322669,0.03745071,71691.0,71673.0,0.0003481]
[1773553322670,0.03745071,71691.0,71669.0,0.06976465]
[1773553322876,0.03745071,71689.0,71669.0,0.06976465]
[1773553323073,0.03745071,71689.0,71670.0,0.05834918]
[1773553323868,0.03745071,71689.0,71679.0,0.05834918]
[1773553324038,0.03745071,71689.0,71670.0,0.0014]
[1773553324039,0.0014,71688.0,71670.0,0.05974918]
[1773553324239,0.03745071,71689.0,71670.0,0.05974918]
[1773553324488,0.0014,71688.0,71670.0,0.05974918]
[1773553324705,0.0014,71688.0,71670.0,0.0977045]
[1773553324896,0.0014,71687.0,71671.0,0.06976322]
[1773553325071,0.0014,71686.0,71672.0,0.03795532]
[1773553325474,0.06974668,71688.0,71672.0,0.03795532]
[1773553325693,0.0014,71687.0,71672.0,0.03795532]
[1773553325956,0.06974668,71688.0,71672.0,0.03795532]
[1773553326167,0.0014,71687.0,71672.0,0.03795532]
[1773553326410,0.03745071,71687.0,71671.0,0.06976322]
[1773553327635,0.06974862,71686.0,71671.0,0.06976322]
[1773553329315,0.03745071,71685.0,71671.0,0.06976322]
[1773553329506,0.03745071,71685.0,71671.0,0.06996322]
[1773553329864,0.06975057,71684.0,71671.0,0.06996322]
[1773553330014,0.07115057,71684.0,71671.0,0.06996322]
[1773553331419,0.10860128,71684.0,71671.0,0.06996322]
[1773553332329,0.07115057,71684.0,71671.0,0.06996322]
[1773553332531,0.03745071,71683.0,71671.0,0.06996322]
[1773553333104,0.0001,71682.0,71671.0,0.06996322]
[1773553333246,0.03755071,71682.0,71671.0,0.06996322]
[1773553335896,0.06975349,71681.0,71671.0,0.06996322]
[1773553336200,0.03745071,71680.0,71671.0,0.06996322]
[1773553336839,0.03745071,71680.0,71667.0,0.00054875]
[1773553336840,0.03745071,71680.0,71654.0,0.03795532]
[1773553336985,0.03745071,71680.0,71656.0,0.07014021]
[1773553337306,0.03745071,71680.0,71660.0,0.05834918]
[1773553338394,0.03745071,71678.0,71660.0,0.05834918]
[1773553338594,0.03745071,71676.0,71659.0,0.06977451]
[1773553338817,0.03745071,71676.0,71662.0,0.0002]
[1773553340496,0.03745071,71674.0,71662.0,0.0002]
[1773553340907,0.03745071,71674.0,71656.0,0.0003627]
[1773553341725,0.03755771,71674.0,71656.0,0.0003627]
[1773553341922,0.03755771,71674.0,71649.0,0.00054883]
[1773553341923,0.03881506,71669.0,71641.0,0.06279228]
[1773553342625,0.06976614,71668.0,71641.0,0.06279228]
[1773553342967,0.03881506,71667.0,71641.0,0.10167873]
[1773553345798,0.03950244,71665.0,71641.0,0.10167873]
[1773553346016,0.03950244,71665.0,71642.0,0.03888645]
[1773553348348,0.06977003,71664.0,71640.0,0.0002]
[1773553348551,0.06977003,71664.0,71628.0,0.06985416]
[1773553348552,0.06977003,71664.0,71633.0,0.01807396]
[1773553348553,0.03929856,71651.0,71633.0,0.01807396]
[1773553348697,0.04069856,71650.0,71633.0,0.01807396]
[1773553348913,0.0014,71649.0,71633.0,0.01807396]
[1773553349867,0.0014,71649.0,71633.0,0.01843099]
[1773553350140,0.0014,71649.0,71633.0,0.08823061]
[1773553350338,0.06978561,71648.0,71633.0,0.08823061]
[1773553351390,0.06978561,71648.0,71633.0,0.01843099]
[1773553352930,0.06978561,71648.0,71633.0,0.01863099]
[1773553354059,0.06978561,71648.0,71634.0,0.03888645]
[1773553354403,0.06978561,71648.0,71636.0,0.03888645]
[1773553355377,0.06978561,71648.0,71643.0,0.08]
[1773553355948,0.06978561,71648.0,71636.0,0.03888645]
[1773553359474,0.0014,71647.0,71637.0,0.03888645]
[1773553359974,0.0697803,71654.0,71637.0,0.05834918]
[1773553360174,0.0697803,71654.0,71638.0,0.03888645]
[1773553360399,0.0014,71653.0,71638.0,0.04028645]
[1773553361424,0.06978172,71652.0,71639.0,0.06979438]
[1773553361749,0.06978172,71652.0,71640.0,0.03888645]
[1773553362938,0.06978172,71652.0,71640.0,0.03878645]
[1773553363684,0.06978172,71652.0,71641.0,0.06979243]
[1773553366211,0.06978172,71652.0,71640.0,0.10857888]
[1773553366994,0.06978172,71652.0,71640.0,0.06979243]
[1773553367488,0.07000173,71652.0,71640.0,0.06979243]
[1773553367696,0.07000173,71652.0,71640.0,0.10867888]
[1773553369276,0.07000173,71652.0,71640.0,0.06979243]
[1773553369444,0.07000173,71652.0,71640.0,0.10867888]
[1773553371133,0.07000173,71652.0,71640.0,0.06979243]
[1773553371337,0.03873304,71651.0,71636.0,0.0002]
[1773553371532,0.03873304,71651.0,71636.0,0.06999665]
[1773553372139,0.06978367,71650.0,71636.0,0.06999665]
[1773553373015,0.06978367,71650.0,71636.0,0.06989665]
[1773553373429,0.03857639,71649.0,71636.0,0.0001]
[1773553373646,0.03857639,71649.0,71636.0,0.06989725]
[1773553374068,0.06978561,71648.0,71636.0,0.0001]
[1773553374249,0.0014,71647.0,71636.0,0.0001]
[1773553376356,0.06978756,71646.0,71634.0,0.06979925]
[1773553378085,0.0001,71636.0,71634.0,0.06979925]
[1773553378288,0.0014,71640.0,71634.0,0.06979925]
[1773553378986,0.06979081,71643.0,71634.0,0.06979925]
[1773553379308,0.0014,71640.0,71634.0,0.06979925]
[1773553380714,0.0014,71641.0,71634.0,0.06979925]
[1773553382447,0.0001,71636.0,71634.0,0.06979925]
[1773553382644,0.0014,71641.0,71634.0,0.10840975]
[1773553383836,0.0014,71641.0,71634.0,0.10860975]
[1773553384020,0.0001,71636.0,71634.0,0.06999925]
[1773553384209,0.0014,71641.0,71634.0,0.06999925]
[1773553384815,0.0014,71641.0,71634.0,0.10860975]
[1773553385641,0.0001,71636.0,71635.0,0.0386105]
[1773553385849,0.0014,71641.0,71635.0,0.0386105]
[1773553386775,0.0001,71636.0,71635.0,0.0386105]
[1773553386978,0.0014,71641.0,71636.0,0.0697973]
[1773553388180,0.0014,71641.0,71635.0,0.06979828]
[1773553388722,0.0001,71636.0,71635.0,0.10840878]
[1773553388908,0.0014,71641.0,71635.0,0.10840878]
[1773553389107,0.0014,71641.0,71636.0,0.0386105]
[1773553389906,0.0697885,71646.0,71636.0,0.0386105]
[1773553390110,0.0697885,71646.0,71636.0,0.0385105]
[1773553390310,0.06978739,71647.0,71637.0,0.06979633]
[1773553390606,0.06978739,71647.0,71637.0,0.10840683]
[1773553392207,0.0014,71646.0,71637.0,0.10840683]
[1773553392417,0.06978854,71645.0,71637.0,0.10840683]
[1773553392762,0.0014,71644.0,71637.0,0.10840683]
[1773553392964,0.0014,71644.0,71636.0,0.0002]
[1773553393198,0.0014,71644.0,71636.0,0.06999722]
[1773553393695,0.0014,71644.0,71636.0,0.06989722]
[1773553394214,0.0014,71644.0,71636.0,0.10850772]
[1773553395175,0.07118954,71644.0,71636.0,0.10850772]
[1773553395908,0.0014,71644.0,71636.0,0.06989722]
[1773553396087,0.07000461,71650.0,71637.0,0.0386105]
[1773553396289,0.0014,71649.0,71637.0,0.0386105]
[1773553397087,0.07000461,71650.0,71639.0,0.0386105]
[1773553397291,0.0014,71648.0,71639.0,0.0386105]
[1773553399218,0.00022001,71644.0,71641.0,0.0386105]
[1773553400230,0.00022001,71644.0,71641.0,0.0385105]
[1773553402393,0.00022001,71644.0,71642.0,0.03725186]
[1773553403327,0.00022001,71644.0,71643.0,0.03725186]
[1773553406587,0.0014,71648.0,71643.0,0.10704234]
[1773553406979,0.00022001,71650.0,71643.0,0.10704234]
[1773553407136,0.00162001,71648.0,71643.0,0.10704234]
[1773553409094,0.00162001,71648.0,71643.0,0.06979048]
[1773553410037,0.00162001,71648.0,71640.0,0.06979341]
[1773553410219,0.0014,71649.0,71641.0,0.03725186]
[1773553410762,0.0001,71643.0,71641.0,0.03725186]
[1773553411082,0.00022001,71650.0,71641.0,0.03725186]
[1773553411083,0.0014,71650.0,71641.0,0.03725186]
[1773553413108,0.0014,71650.0,71642.0,0.10704332]
[1773553413309,0.0014,71650.0,71643.0,0.03725186]
[1773553415215,0.06977989,71654.0,71644.0,0.06978951]
[1773553415415,0.0014,71650.0,71644.0,0.06978951]
[1773553416069,0.00162001,71650.0,71644.0,0.06978951]
[1773553416615,0.00172001,71650.0,71644.0,0.06978951]
[1773553417066,0.00032001,71650.0,71644.0,0.06978951]
[1773553417268,0.00032001,71650.0,71644.0,0.09308339]
[1773553417937,0.00042001,71650.0,71644.0,0.09308339]
[1773553418537,0.00042001,71650.0,71644.0,0.09023561]
[1773553419282,0.00042001,71650.0,71642.0,0.06979146]
[1773553419488,0.07020387,71650.0,71639.0,0.0002]
[1773553419710,0.02263597,71649.0,71638.0,0.06979484]
[1773553420919,0.02263597,71649.0,71637.0,0.06979633]
[1773553421552,0.02263597,71649.0,71636.0,0.06989662]
[1773553421553,0.06978561,71648.0,71636.0,0.06989662]
[1773553422428,0.06978561,71648.0,71637.0,0.0002]
[1773553423735,0.06978561,71648.0,71638.0,0.06979536]
[1773553425081,0.06978561,71648.0,71633.0,0.04396626]
[1773553425259,0.06978561,71648.0,71634.0,0.06979925]
[1773553425941,0.06978561,71648.0,71633.0,0.04396626]
[1773553426782,0.06978561,71648.0,71626.0,0.07000692]
[1773553426783,0.02494977,71642.0,71626.0,0.07000692]
[1773553426927,0.0014,71641.0,71626.0,0.07000692]
[1773553428140,0.06979341,71640.0,71626.0,0.07000692]
[1773553432569,0.06979341,71640.0,71627.0,0.03652214]
[1773553432947,0.06979341,71640.0,71626.0,0.07000692]
[1773553440748,0.09328764,71640.0,71626.0,0.07000692]
[1773553440921,0.02349423,71639.0,71626.0,0.07000692]
[1773553441441,0.06979536,71638.0,71626.0,0.07000692]
[1773553442896,0.06979536,71638.0,71626.0,0.06990692]
[1773553443238,0.06975536,71638.0,71626.0,0.06986692]
[1773553445518,0.06975536,71638.0,71626.0,0.06976692]
[1773553446826,0.06975536,71638.0,71625.0,0.07000706]
[1773553448199,0.06975536,71638.0,71625.0,0.0002]
[1773553448200,0.02267651,71637.0,71625.0,0.0002]
[1773553448397,0.02267651,71637.0,71624.0,0.0002]
[1773553448622,0.02267651,71637.0,71622.0,0.0003353]
[1773553450256,0.0697973,71636.0,71622.0,0.0003353]
[1773553450404,0.0014,71635.0,71622.0,0.0003353]
[1773553450812,0.0014,71635.0,71625.0,0.0002]
[1773553451742,0.0001,71626.0,71625.0,0.0002]
[1773553454191,0.0001,71626.0,71621.0,1e-08]
[1773553454400,0.06990705,71626.0,71621.0,1e-08]
[1773553455566,0.07090705,71626.0,71621.0,1e-08]
[1773553456109,0.06990705,71626.0,71621.0,1e-08]
[1773553456767,0.06990705,71626.0,71622.0,0.03652214]
[1773553456968,0.06990705,71626.0,71612.0,0.00404001]
[1773553456969,0.0014,71625.0,71612.0,0.00404001]
[1773553457232,0.0014,71625.0,71613.0,0.03652214]
[1773553457610,0.0014,71625.0,71610.0,0.0700224]
[1773553457611,0.0014,71625.0,71610.0,0.0002]
[1773553457612,0.05845578,71623.0,71610.0,0.0002]
[1773553457811,0.05845578,71623.0,71608.0,0.0001675]
[1773553457812,0.0213811,71622.0,71608.0,0.0001675]
[1773553458218,0.06981192,71621.0,71608.0,0.0001675]
[1773553458714,0.06981192,71621.0,71609.0,0.03652214]
[1773553459380,0.06981192,71621.0,71613.0,0.0002]
[1773553460264,0.06911381,71621.0,71613.0,0.0002]
[1773553464299,0.07011381,71621.0,71613.0,0.0002]
[1773553464448,0.06911381,71621.0,71613.0,0.0002]
[1773553467281,0.06981192,71624.0,71614.0,0.09496163]
[1773553467486,0.06981192,71624.0,71615.0,0.03634651]
[1773553468370,0.06981192,71623.0,71615.0,0.03634651]
[1773553470889,0.07121192,71624.0,71615.0,0.03634651]
[1773553471750,0.0014,71624.0,71616.0,0.03634651]
[1773553471992,0.07030717,71626.0,71616.0,0.03634651]
[1773553472226,0.07170717,71626.0,71616.0,0.03634651]
[1773553472492,0.07030717,71626.0,71616.0,0.03634651]
[1773553472694,0.07170717,71626.0,71616.0,0.03634651]
[1773553472905,0.07170717,71626.0,71617.0,0.03634651]
[1773553473313,0.07030717,71626.0,71617.0,0.03634651]
[1773553473519,0.00022001,71623.0,71617.0,0.03634651]
[1773553475382,0.07170717,71626.0,71617.0,0.03634651]
[1773553477162,0.07030717,71626.0,71617.0,0.03634651]
[1773553477368,0.0014,71625.0,71617.0,0.03634651]
[1773553477850,0.069809,71624.0,71617.0,0.03634651]
[1773553478209,0.069809,71624.0,71618.0,0.03634651]
[1773553478945,0.0005,71626.0,71618.0,0.03634651]
[1773553479156,0.00022001,71658.0,71617.0,0.11171402]
[1773553479157,0.20908387,71637.0,71621.0,0.03634651]
[1773553479355,0.06979677,71637.0,71625.0,0.03634651]
[1773553479555,0.0014,71636.0,71625.0,0.03634651]
[1773553479734,0.06979677,71637.0,71627.0,0.03634651]
[1773553479921,0.07119677,71637.0,71627.0,0.03634651]
[1773553480318,0.06979677,71637.0,71627.0,0.03634651]
[1773553481114,0.00036541,71638.0,71627.0,0.03634651]
[1773553481466,0.06979557,71638.0,71627.0,0.03634651]
[1773553481785,0.06979557,71638.0,71628.0,0.0698051]
[1773553481987,0.06979557,71638.0,71629.0,0.03634651]
[1773553482464,0.00022001,71632.0,71629.0,0.03634651]
[1773553483966,0.00022001,71632.0,71630.0,0.06980315]
[1773553484178,0.06979647,71637.0,71630.0,0.06980315]
[1773553484882,0.06979647,71637.0,71628.0,0.0698051]
[1773553487716,0.06979557,71638.0,71624.0,0.069809]
[1773553487869,0.06979557,71638.0,71625.0,0.03634651]
[1773553488070,0.06979557,71638.0,71629.0,0.04189127]
[1773553489100,0.07001496,71639.0,71629.0,0.07823778]
[1773553489759,0.07001496,71639.0,71630.0,0.06980315]
[1773553490116,0.07001496,71639.0,71630.0,0.11169442]
[1773553490321,0.00022001,71637.0,71630.0,0.11169442]
[1773553490734,0.00022001,71637.0,71631.0,0.03811087]
[1773553491764,0.00022001,71637.0,71631.0,0.10791254]
[1773553492138,0.00022001,71639.0,71632.0,0.03525377]
[1773553492489,0.06979536,71638.0,71632.0,0.03525377]
[1773553493268,0.07001448,71639.0,71631.0,0.06980167]
[1773553494460,0.00022001,71639.0,71631.0,0.10505544]
[1773553494686,0.07001342,71640.0,71631.0,0.10505544]
[1773553496801,0.07001342,71640.0,71632.0,0.03525377]
[1773553497487,0.07001342,71640.0,71633.0,0.04188777]
[1773553498470,0.07001369,71640.0,71633.0,0.04188777]
[1773553499524,0.07001369,71640.0,71633.0,0.11168738]
[1773553500388,0.07001369,71640.0,71632.0,0.06980082]
[1773553500860,0.07001369,71640.0,71626.0,0.06980662]
[1773553500861,0.03813594,71639.0,71626.0,0.06980662]
[1773553501434,0.03813594,71639.0,71625.0,0.06980735]
[1773553501435,0.0014,71638.0,71625.0,0.06980735]
[1773553501756,0.03813594,71635.0,71622.0,0.0014]
[1773553502910,0.03813594,71635.0,71620.0,0.04189391]
[1773553503140,0.03813594,71635.0,71618.0,0.06996025]
[1773553503141,0.03813594,71635.0,71622.0,0.0014]
[1773553503522,0.0697973,71636.0,71622.0,0.06981095]
[1773553503720,0.06979565,71638.0,71623.0,0.03525377]
[1773553503922,0.07119565,71638.0,71623.0,0.03525377]
[1773553505656,0.07119565,71638.0,71624.0,0.10506277]
[1773553505971,0.07119565,71638.0,71625.0,0.03525377]
[1773553506364,0.00022001,71640.0,71628.0,0.05844512]
[1773553506667,0.07000911,71645.0,71629.0,0.03665377]
[1773553507216,0.00034892,71649.0,71629.0,0.03665377]
[1773553507217,0.00034892,71649.0,71635.0,0.05844512]
[1773553507421,0.00034892,71649.0,71636.0,0.0014]
[1773553507624,0.00034892,71649.0,71638.0,0.06979536]
[1773553507625,0.03848486,71649.0,71638.0,0.06979536]
[1773553507825,0.03813594,71647.0,71636.0,0.0014]
[1773553508067,0.0014,71646.0,71631.0,0.0014]
[1773553508272,0.03813594,71645.0,71631.0,0.0014]
[1773553508572,0.03813594,71645.0,71629.0,0.06980412]
[1773553508874,0.03813594,71645.0,71629.0,0.07004412]
[1773553510741,0.03813594,71643.0,71629.0,0.07004412]
[1773553513148,0.06979146,71642.0,71629.0,0.07004412]
[1773553513346,0.03813594,71641.0,71629.0,0.07004412]
[1773553513730,0.06979146,71642.0,71629.0,0.07004412]
[1773553513934,0.0700058,71648.0,71631.0,0.0267541]
[1773553514134,0.0014,71647.0,71630.0,0.05844512]
[1773553514965,0.0014,71647.0,71630.0,0.05868512]
[1773553517069,0.06978756,71646.0,71631.0,0.06980218]
[1773553518717,0.00022001,71648.0,71634.0,0.02581936]
[1773553518916,0.07000608,71648.0,71631.0,0.06980218]
[1773553519103,0.10814202,71648.0,71634.0,8.68e-05]
[1773553519315,0.03813594,71647.0,71634.0,8.68e-05]
[1773553519593,0.03813594,71647.0,71635.0,0.0014]
[1773553519996,0.03813594,71647.0,71635.0,0.0014868]
[1773553521254,0.10792285,71647.0,71637.0,0.06979633]
[1773553522057,0.10792285,71647.0,71637.0,0.06988313]
[1773553524166,0.00022001,71648.0,71637.0,0.06988313]
[1773553524468,0.00022001,71648.0,71637.0,0.12832825]
[1773553524689,0.00022001,71648.0,71637.0,0.06988313]
[1773553525672,0.00022001,71648.0,71638.0,0.0014]
[1773553525893,0.03569997,71648.0,71639.0,0.06979438]
[1773553526055,0.03569997,71648.0,71639.0,0.06988118]
[1773553526775,0.03569997,71648.0,71639.0,0.06998825]
[1773553527171,0.00022001,71647.0,71639.0,0.06998825]
[1773553528178,0.00022001,71647.0,71639.0,0.00019387]
[1773553529803,0.03569997,71647.0,71639.0,0.00019387]
[1773553533281,0.00022001,71648.0,71639.0,0.00019387]
[1773553534253,0.00022001,71648.0,71639.0,9.387e-05]
[1773553536338,0.00022001,71647.0,71639.0,9.387e-05]
[1773553541105,6.13e-06,71639.0,71638.0,0.06979536]
[1773553541270,0.00022001,71647.0,71638.0,0.06979536]
[1773553544513,0.00022001,71647.0,71638.0,0.06999536]
[1773553544715,0.00022001,71648.0,71638.0,0.06999536]
[1773553547238,0.00022001,71648.0,71639.0,0.0014]
[1773553547558,0.00022001,71648.0,71638.0,0.06999536]
[1773553547839,0.00022001,71648.0,71640.0,0.0014]
[1773553548040,0.00022001,71648.0,71638.0,0.06999536]
[1773553548193,0.00022001,71648.0,71639.0,0.0014]
[1773553548614,0.00022001,71648.0,71640.0,0.06979341]
[1773553548814,0.00022001,71648.0,71641.0,0.0014]
[1773553550238,0.00022001,71648.0,71640.0,0.06979341]
[1773553550407,0.00022001,71648.0,71641.0,0.0014]
[1773553550825,0.00022001,71648.0,71642.0,0.06979146]
[1773553551581,0.00022001,71648.0,71641.0,0.07119146]
[1773553551582,0.00022001,71648.0,71641.0,0.06979146]
[1773553551764,0.03274013,71648.0,71641.0,0.06979146]
[1773553555796,0.03274013,71648.0,71641.0,0.06969146]
[1773553562789,0.03274013,71648.0,71641.0,0.05592453]
[1773553563010,0.0700057,71648.0,71641.0,0.05588453]
[1773553563339,0.03252012,71647.0,71641.0,0.05588453]
[1773553564099,0.03252012,71650.0,71641.0,0.05588453]
[1773553569840,0.03274013,71650.0,71641.0,0.05588453]
[1773553570207,0.10252403,71650.0,71641.0,0.05588453]
[1773553571593,0.03252012,71649.0,71631.0,0.06980143]
[1773553571748,0.03252012,71649.0,71634.0,0.06999919]
[1773553571749,0.13953511,71648.0,71634.0,0.06999919]
[1773553571947,0.03252012,71646.0,71634.0,0.06999919]
[1773553572209,0.0014,71645.0,71634.0,0.05650332]
[1773553572490,0.03252012,71644.0,71634.0,0.05650332]
[1773553573269,0.03252012,71644.0,71631.0,0.06980218]